[Event "Titled Tuesday Blitz March 01 Late 2022"]
[White "Ardila, Oscar Humberto"]
[Black "Villegas, Pierre"]
[WhiteFideId "4404742"]
[BlackFideId "654183"]
[WhiteElo "1898"]
[BlackElo "2410"]
[Result "0-1"]
[Round "02"]
[TimeControl "180+1"]
[Date "2022.03.02"]
[WhiteClock "0:00:02"]
[BlackClock "0:00:08"]

1. d4 {[%clk 0:03:00]}  Nf6 {[%clk 0:02:57]} 2. c4 {[%clk 0:03:01]}  c5 {[%clk 0:02:56]} 3. d5 {[%clk 0:03:01]}  b5 {[%clk 0:02:56]} 4. Qc2 {[%clk 0:02:59]}  bxc4 {[%clk 0:02:50]} 5. Nc3 {[%clk 0:02:59]}  g6 {[%clk 0:02:48]} 6. e4 {[%clk 0:02:59]}  d6 {[%clk 0:02:48]} 7. Bxc4 {[%clk 0:02:58]}  Bg7 {[%clk 0:02:49]} 8. h3 {[%clk 0:02:56]}  O-O {[%clk 0:02:48]} 9. Nf3 {[%clk 0:02:56]}  Nbd7 {[%clk 0:02:48]} 10. O-O {[%clk 0:02:55]}  Nb6 {[%clk 0:02:38]} 11. Bb5 {[%clk 0:02:48]}  Bd7 {[%clk 0:02:36]} 12. Re1 {[%clk 0:02:44]}  Bxb5 {[%clk 0:02:32]} 13. Nxb5 {[%clk 0:02:44]}  Nfd7 {[%clk 0:02:29]} 14. Bg5 {[%clk 0:02:41]}  Ne5 {[%clk 0:02:23]} 15. Nxe5 {[%clk 0:02:33]}  Bxe5 {[%clk 0:02:24]} 16. f4 {[%clk 0:02:32]}  Bg7 {[%clk 0:02:22]} 17. Rad1 {[%clk 0:02:29]}  Qd7 {[%clk 0:02:19]} 18. Nc3 {[%clk 0:02:24]}  Bxc3 {[%clk 0:01:44]} 19. bxc3 {[%clk 0:02:15]}  f6 {[%clk 0:01:42]} 20. Bh6 {[%clk 0:02:08]}  Rfd8 {[%clk 0:01:40]} 21. f5 {[%clk 0:02:08]}  Qa4 {[%clk 0:01:36]} 22. Qe2 {[%clk 0:01:54]}  Kf7 {[%clk 0:01:21]} 23. Qg4 {[%clk 0:01:45]}  Nc4 {[%clk 0:01:17]} 24. fxg6+ {[%clk 0:01:43]}  hxg6 {[%clk 0:01:07]} 25. Qe6+ {[%clk 0:01:43]}  Ke8 {[%clk 0:01:08]} 26. Bg7 {[%clk 0:01:11]}  Rab8 {[%clk 0:00:37]} 27. Bxf6 {[%clk 0:01:10]}  Rb7 {[%clk 0:00:38]} 28. Bg5 {[%clk 0:00:37]}  Ne5 {[%clk 0:00:38]} 29. Bf4 {[%clk 0:00:27]}  Nf7 {[%clk 0:00:34]} 30. Qxg6 {[%clk 0:00:25]}  Rb2 {[%clk 0:00:26]} 31. Qg8+ {[%clk 0:00:21]}  Kd7 {[%clk 0:00:26]} 32. Qxf7 {[%clk 0:00:21]}  Qc2 {[%clk 0:00:26]} 33. Rd2 {[%clk 0:00:20]}  Qxc3 {[%clk 0:00:27]} 34. Qe6+ {[%clk 0:00:20]}  Kc7 {[%clk 0:00:26]} 35. e5 {[%clk 0:00:17]}  Rxd2 {[%clk 0:00:23]} 36. exd6+ {[%clk 0:00:17]}  exd6 {[%clk 0:00:23]} 37. Bxd2 {[%clk 0:00:15]}  Qxd2 {[%clk 0:00:22]} 38. Qe3 {[%clk 0:00:15]}  Qxd5 {[%clk 0:00:22]} 39. Re2 {[%clk 0:00:13]}  Rg8 {[%clk 0:00:20]} 40. Rf2 {[%clk 0:00:12]}  Qd1+ {[%clk 0:00:19]} 41. Kh2 {[%clk 0:00:12]}  Qd5 {[%clk 0:00:19]} 42. Qf4 {[%clk 0:00:11]}  Rd8 {[%clk 0:00:17]} 43. a4 {[%clk 0:00:10]}  c4 {[%clk 0:00:17]} 44. Rc2 {[%clk 0:00:08]}  Kb7 {[%clk 0:00:09]} 45. Rxc4 {[%clk 0:00:08]}  Rg8 {[%clk 0:00:09]} 46. Rb4+ {[%clk 0:00:08]}  Ka8 {[%clk 0:00:10]} 47. Rb2 {[%clk 0:00:07]}  Qe6 {[%clk 0:00:09]} 48. Rf2 {[%clk 0:00:06]}  d5 {[%clk 0:00:09]} 49. Qf5 {[%clk 0:00:05]}  Qd6+ {[%clk 0:00:09]} 50. Qf4 {[%clk 0:00:06]}  Qg6 {[%clk 0:00:06]} 51. Qf3 {[%clk 0:00:06]}  Qd6+ {[%clk 0:00:06]} 52. Kg1 {[%clk 0:00:05]}  Rc8 {[%clk 0:00:06]} 53. Rd2 {[%clk 0:00:05]}  Rc1+ {[%clk 0:00:06]} 54. Kf2 {[%clk 0:00:05]}  Qc5+ {[%clk 0:00:06]} 55. Qe3 {[%clk 0:00:06]}  Rf1+ {[%clk 0:00:05]} 56. Ke2 {[%clk 0:00:03]}  Re1+ {[%clk 0:00:05]} 57. Kxe1 {[%clk 0:00:04]}  Qxe3+ {[%clk 0:00:06]} 58. Kd1 {[%clk 0:00:05]}  Qg1+ {[%clk 0:00:05]} 59. Kc2 {[%clk 0:00:05]}  Qc5+ {[%clk 0:00:06]} 60. Kd1 {[%clk 0:00:05]}  d4 {[%clk 0:00:06]} 61. Ke2 {[%clk 0:00:06]}  Qe5+ {[%clk 0:00:06]} 62. Kd1 {[%clk 0:00:06]}  Qe3 {[%clk 0:00:06]} 63. Kc2 {[%clk 0:00:06]}  Qe4+ {[%clk 0:00:05]} 64. Kd1 {[%clk 0:00:06]}  Kb7 {[%clk 0:00:05]} 65. g4 {[%clk 0:00:05]}  Qh1+ {[%clk 0:00:05]} 66. Kc2 {[%clk 0:00:06]}  Qe4+ {[%clk 0:00:06]} 67. Kb3 {[%clk 0:00:05]}  Kc6 {[%clk 0:00:06]} 68. Rc2+ {[%clk 0:00:05]}  Kd5 {[%clk 0:00:06]} 69. a5 {[%clk 0:00:03]}  Qe3+ {[%clk 0:00:06]} 70. Kb2 {[%clk 0:00:03]}  Qxh3 {[%clk 0:00:07]} 71. Rc7 {[%clk 0:00:03]}  Qxg4 {[%clk 0:00:07]} 72. Rxa7 {[%clk 0:00:02]}  d3 {[%clk 0:00:07]} 73. Kc3 {[%clk 0:00:02]}  Qd4+ {[%clk 0:00:07]} 74. Kd2 {[%clk 0:00:02]}  Qxa7 {[%clk 0:00:08]} 75. Kxd3 {[%clk 0:00:02]}  Qxa5 {[%clk 0:00:08]} 0-1


[Site "https://www.chess.com"]

[Event "Titled Tuesday Blitz March 01 Late 2022"]
[White "Avila Pavas, Santiago"]
[Black "Mickiewicz, Piotr"]
[WhiteFideId "4437128"]
[BlackFideId "1114891"]
[WhiteElo "2242"]
[BlackElo "2266"]
[Result "1-0"]
[Round "02"]
[TimeControl "180+1"]
[Date "2022.03.02"]
[WhiteClock "0:00:23"]
[BlackClock "0:00:26"]

1. d4 {[%clk 0:03:00]}  Nf6 {[%clk 0:02:58]} 2. Nf3 {[%clk 0:03:01]}  e6 {[%clk 0:02:57]} 3. g3 {[%clk 0:03:01]}  b6 {[%clk 0:02:56]} 4. Bg2 {[%clk 0:03:00]}  Bb7 {[%clk 0:02:57]} 5. c4 {[%clk 0:02:59]}  Bb4+ {[%clk 0:02:55]} 6. Bd2 {[%clk 0:02:59]}  Bxd2+ {[%clk 0:02:54]} 7. Qxd2 {[%clk 0:02:59]}  O-O {[%clk 0:02:53]} 8. O-O {[%clk 0:02:59]}  d6 {[%clk 0:02:51]} 9. Na3 {[%clk 0:02:48]}  Be4 {[%clk 0:02:48]} 10. Nb5 {[%clk 0:02:46]}  Nbd7 {[%clk 0:02:41]} 11. Nc3 {[%clk 0:02:46]}  Bb7 {[%clk 0:02:36]} 12. d5 {[%clk 0:02:37]}  Nc5 {[%clk 0:02:30]} 13. Nd4 {[%clk 0:02:28]}  e5 {[%clk 0:02:27]} 14. Nc2 {[%clk 0:02:28]}  a5 {[%clk 0:02:27]} 15. e4 {[%clk 0:02:26]}  Bc8 {[%clk 0:02:24]} 16. Rab1 {[%clk 0:02:16]}  g6 {[%clk 0:02:20]} 17. b3 {[%clk 0:02:16]}  Nh5 {[%clk 0:02:19]} 18. f4 {[%clk 0:01:49]}  exf4 {[%clk 0:02:17]} 19. gxf4 {[%clk 0:01:50]}  Qh4 {[%clk 0:02:17]} 20. f5 {[%clk 0:01:41]}  gxf5 {[%clk 0:02:08]} 21. exf5 {[%clk 0:01:42]}  Kh8 {[%clk 0:01:54]} 22. Qd4+ {[%clk 0:01:40]}  Qxd4+ {[%clk 0:01:49]} 23. Nxd4 {[%clk 0:01:40]}  Bd7 {[%clk 0:01:46]} 24. Rbe1 {[%clk 0:01:08]}  Rae8 {[%clk 0:01:45]} 25. Ncb5 {[%clk 0:01:08]}  Na6 {[%clk 0:01:40]} 26. Rxe8 {[%clk 0:00:55]}  Rxe8 {[%clk 0:01:40]} 27. f6 {[%clk 0:00:56]}  Re5 {[%clk 0:01:30]} 28. Kh1 {[%clk 0:00:52]}  h6 {[%clk 0:01:23]} 29. Nc6 {[%clk 0:00:41]}  Bxc6 {[%clk 0:01:21]} 30. dxc6 {[%clk 0:00:42]}  Kh7 {[%clk 0:01:19]} 31. Bh3 {[%clk 0:00:31]}  Kg6 {[%clk 0:01:07]} 32. Bc8 {[%clk 0:00:30]}  Nb4 {[%clk 0:01:05]} 33. Bd7 {[%clk 0:00:26]}  Na6 {[%clk 0:01:01]} 34. Bc8 {[%clk 0:00:26]}  Nb4 {[%clk 0:01:01]} 35. Bb7 {[%clk 0:00:27]}  Nd3 {[%clk 0:00:31]} 36. Nxc7 {[%clk 0:00:24]}  Re2 {[%clk 0:00:31]} 37. Nd5 {[%clk 0:00:23]}  Nf2+ {[%clk 0:00:24]} 38. Rxf2 {[%clk 0:00:23]}  Rxf2 {[%clk 0:00:25]} 39. c7 {[%clk 0:00:23]}  Nf4 {[%clk 0:00:25]} 40. Nxf4+ {[%clk 0:00:23]}  Rxf4 {[%clk 0:00:26]} 41. c8=Q {[%clk 0:00:23]} 1-0


[Site "https://www.chess.com"]

[Event "Titled Tuesday Blitz March 01 Late 2022"]
[White "Balint, Vilmos"]
[Black "Baskin, Robert"]
[WhiteFideId "718050"]
[BlackFideId "24662402"]
[WhiteElo "2059"]
[BlackElo "2488"]
[Result "0-1"]
[Round "02"]
[TimeControl "180+1"]
[Date "2022.03.02"]
[WhiteClock "0:00:37"]
[BlackClock "0:00:53"]

1. e4 {[%clk 0:03:00]}  e6 {[%clk 0:02:51]} 2. d4 {[%clk 0:02:59]}  d5 {[%clk 0:02:51]} 3. Nc3 {[%clk 0:02:59]}  dxe4 {[%clk 0:02:47]} 4. Nxe4 {[%clk 0:02:58]}  Nd7 {[%clk 0:02:48]} 5. Nf3 {[%clk 0:02:52]}  Ngf6 {[%clk 0:02:48]} 6. Ng3 {[%clk 0:02:49]}  c5 {[%clk 0:02:46]} 7. Be3 {[%clk 0:02:47]}  Nd5 {[%clk 0:02:41]} 8. Bg5 {[%clk 0:02:46]}  Qb6 {[%clk 0:02:40]} 9. Bc4 {[%clk 0:02:41]}  Qb4+ {[%clk 0:02:37]} 10. Nd2 {[%clk 0:02:40]}  N7b6 {[%clk 0:02:21]} 11. Bb3 {[%clk 0:02:37]}  cxd4 {[%clk 0:02:14]} 12. O-O {[%clk 0:02:36]}  h6 {[%clk 0:02:11]} 13. a3 {[%clk 0:02:21]}  Qb5 {[%clk 0:02:09]} 14. Bh4 {[%clk 0:02:14]}  g5 {[%clk 0:02:08]} 15. Nge4 {[%clk 0:02:14]}  gxh4 {[%clk 0:02:03]} 16. Re1 {[%clk 0:02:14]}  Be7 {[%clk 0:02:02]} 17. Qh5 {[%clk 0:01:55]}  Bd7 {[%clk 0:01:57]} 18. c4 {[%clk 0:01:45]}  dxc3 {[%clk 0:01:56]} 19. bxc3 {[%clk 0:01:45]}  Nc7 {[%clk 0:01:36]} 20. Qg4 {[%clk 0:01:38]}  O-O-O {[%clk 0:01:31]} 21. a4 {[%clk 0:01:32]}  Qa5 {[%clk 0:01:31]} 22. Qg7 {[%clk 0:01:27]}  Qf5 {[%clk 0:01:20]} 23. Bc2 {[%clk 0:01:06]}  Kb8 {[%clk 0:01:06]} 24. Ra2 {[%clk 0:00:54]}  Bc6 {[%clk 0:01:00]} 25. Nd6 {[%clk 0:00:43]}  Qg5 {[%clk 0:00:59]} 26. Qxg5 {[%clk 0:00:43]}  Bxg5 {[%clk 0:00:59]} 27. Nxf7 {[%clk 0:00:43]}  Bxd2 {[%clk 0:00:59]} 28. Rd1 {[%clk 0:00:41]}  Bg5 {[%clk 0:00:54]} 29. Nxh8 {[%clk 0:00:39]}  Rxh8 {[%clk 0:00:54]} 30. a5 {[%clk 0:00:37]}  Nbd5 {[%clk 0:00:54]} 31. c4 {[%clk 0:00:37]}  Nc3 {[%clk 0:00:53]} 0-1


[Site "https://www.chess.com"]

[Event "Titled Tuesday Blitz March 01 Late 2022"]
[White "Cabarkapa, Novak"]
[Black "Renjith, Sravan"]
[WhiteFideId "943746"]
[BlackFideId "4306783"]
[WhiteElo "2443"]
[BlackElo "1863"]
[Result "0-1"]
[Round "02"]
[TimeControl "180+1"]
[Date "2022.03.02"]
[WhiteClock "0:00:05"]
[BlackClock "0:00:05"]

1. d4 {[%clk 0:02:57]}  d5 {[%clk 0:02:59]} 2. Nc3 {[%clk 0:02:58]}  e6 {[%clk 0:02:58]} 3. e4 {[%clk 0:02:57]}  dxe4 {[%clk 0:02:57]} 4. Nxe4 {[%clk 0:02:58]}  Be7 {[%clk 0:02:57]} 5. Nf3 {[%clk 0:02:58]}  Nf6 {[%clk 0:02:57]} 6. Nxf6+ {[%clk 0:02:59]}  Bxf6 {[%clk 0:02:57]} 7. Bd3 {[%clk 0:02:59]}  Nd7 {[%clk 0:02:56]} 8. c3 {[%clk 0:02:58]}  O-O {[%clk 0:02:54]} 9. h4 {[%clk 0:02:59]}  c5 {[%clk 0:02:53]} 10. Bxh7+ {[%clk 0:02:58]}  Kxh7 {[%clk 0:02:37]} 11. Ng5+ {[%clk 0:02:57]}  Kg8 {[%clk 0:02:09]} 12. Qh5 {[%clk 0:02:55]}  Re8 {[%clk 0:02:10]} 13. Qxf7+ {[%clk 0:02:53]}  Kh8 {[%clk 0:02:08]} 14. h5 {[%clk 0:02:22]}  Qe7 {[%clk 0:00:32]} 15. Qg6 {[%clk 0:02:17]}  Nf8 {[%clk 0:00:28]} 16. Qe4 {[%clk 0:01:31]}  Bxg5 {[%clk 0:00:20]} 17. h6 {[%clk 0:01:31]}  g6 {[%clk 0:00:05]} 18. h7 {[%clk 0:01:25]}  Bf6 {[%clk 0:00:05]} 19. Bh6 {[%clk 0:01:22]}  cxd4 {[%clk 0:00:05]} 20. O-O-O {[%clk 0:01:22]}  Bg5+ {[%clk 0:00:04]} 21. Bxg5 {[%clk 0:01:18]}  Qxg5+ {[%clk 0:00:05]} 22. f4 {[%clk 0:01:18]}  Qf5 {[%clk 0:00:04]} 23. Qxd4+ {[%clk 0:00:54]}  e5 {[%clk 0:00:04]} 24. Qd5 {[%clk 0:00:55]}  Qxf4+ {[%clk 0:00:04]} 25. Kb1 {[%clk 0:00:51]}  Be6 {[%clk 0:00:04]} 26. Qxb7 {[%clk 0:00:47]}  Rab8 {[%clk 0:00:03]} 27. Qg7+ {[%clk 0:00:45]}  Kxg7 {[%clk 0:00:03]} 28. h8=Q+ {[%clk 0:00:46]}  Kf7 {[%clk 0:00:04]} 29. Rdf1 {[%clk 0:00:45]}  Bf5+ {[%clk 0:00:03]} 30. Ka1 {[%clk 0:00:45]}  Qd2 {[%clk 0:00:04]} 31. Rb1 {[%clk 0:00:32]}  Bxb1 {[%clk 0:00:03]} 32. Rxb1 {[%clk 0:00:32]}  Ke7 {[%clk 0:00:03]} 33. Qg7+ {[%clk 0:00:24]}  Kd6 {[%clk 0:00:04]} 34. Qxa7 {[%clk 0:00:16]}  Ne6 {[%clk 0:00:03]} 35. Qg1 {[%clk 0:00:15]}  Ke7 {[%clk 0:00:02]} 36. Qa7+ {[%clk 0:00:15]}  Kd6 {[%clk 0:00:02]} 37. Qg1 {[%clk 0:00:14]}  Ke7 {[%clk 0:00:02]} 38. Qa7+ {[%clk 0:00:15]}  Qd7 {[%clk 0:00:02]} 39. Qa3+ {[%clk 0:00:13]}  Kf7 {[%clk 0:00:02]} 40. Qa5 {[%clk 0:00:12]}  Nf4 {[%clk 0:00:01]} 41. g3 {[%clk 0:00:11]}  Qe6 {[%clk 0:00:02]} 42. gxf4 {[%clk 0:00:10]}  exf4 {[%clk 0:00:03]} 43. Qc7+ {[%clk 0:00:09]}  Kg8 {[%clk 0:00:02]} 44. a3 {[%clk 0:00:08]}  Ra8 {[%clk 0:00:02]} 45. Rh1 {[%clk 0:00:07]}  Re7 {[%clk 0:00:01]} 46. Qc5 {[%clk 0:00:06]}  Rd7 {[%clk 0:00:01]} 47. Qg5 {[%clk 0:00:04]}  Rad8 {[%clk 0:00:01]} 48. Rc1 {[%clk 0:00:01]}  f3 {[%clk 0:00:01]} 49. Qg3 {[%clk 0:00:01]}  f2 {[%clk 0:00:02]} 50. Qxf2 {[%clk 0:00:01]}  Rd1 {[%clk 0:00:03]} 51. Qc2 {[%clk 0:00:02]}  Rxc1+ {[%clk 0:00:03]} 52. Qxc1 {[%clk 0:00:03]}  Qe2 {[%clk 0:00:04]} 53. Ka2 {[%clk 0:00:04]}  Rd1 {[%clk 0:00:04]} 54. Qg5 {[%clk 0:00:04]}  Qc4+ {[%clk 0:00:04]} 55. b3 {[%clk 0:00:04]}  Qe2+ {[%clk 0:00:05]} 56. Qd2 {[%clk 0:00:05]}  Qxd2# {[%clk 0:00:05]} 0-1


[Site "https://www.chess.com"]

[Event "Titled Tuesday Blitz March 01 Late 2022"]
[White "Carre, Sylvain"]
[Black "Golubovskis, Maksims"]
[WhiteFideId "642118"]
[BlackFideId "11608528"]
[WhiteElo "2105"]
[BlackElo "2066"]
[Result "0-1"]
[Round "02"]
[TimeControl "180+1"]
[Date "2022.03.02"]
[WhiteClock "0:00:39"]
[BlackClock "0:01:04"]

1. d4 {[%clk 0:02:58]}  Nf6 {[%clk 0:02:55]} 2. Bf4 {[%clk 0:02:56]}  c5 {[%clk 0:02:55]} 3. d5 {[%clk 0:02:56]}  g6 {[%clk 0:02:52]} 4. Nc3 {[%clk 0:02:56]}  Bg7 {[%clk 0:02:51]} 5. e4 {[%clk 0:02:56]}  O-O {[%clk 0:02:49]} 6. Nf3 {[%clk 0:02:51]}  Qa5 {[%clk 0:02:49]} 7. Bd2 {[%clk 0:02:49]}  d6 {[%clk 0:02:34]} 8. Bc4 {[%clk 0:02:20]}  a6 {[%clk 0:02:25]} 9. a4 {[%clk 0:02:19]}  Bg4 {[%clk 0:02:21]} 10. h3 {[%clk 0:02:16]}  Bxf3 {[%clk 0:02:16]} 11. Qxf3 {[%clk 0:02:17]}  Nbd7 {[%clk 0:02:16]} 12. O-O {[%clk 0:02:07]}  Ne5 {[%clk 0:02:16]} 13. Qe2 {[%clk 0:02:08]}  Nfd7 {[%clk 0:02:12]} 14. Ba2 {[%clk 0:01:52]}  Nf6 {[%clk 0:01:47]} 15. f4 {[%clk 0:01:48]}  Ned7 {[%clk 0:01:47]} 16. Kh2 {[%clk 0:01:14]}  Qb4 {[%clk 0:01:27]} 17. e5 {[%clk 0:01:03]}  dxe5 {[%clk 0:01:22]} 18. fxe5 {[%clk 0:01:03]}  Nxe5 {[%clk 0:01:22]} 19. Rf4 {[%clk 0:00:51]}  Qb6 {[%clk 0:01:08]} 20. Kh1 {[%clk 0:00:45]}  Nh5 {[%clk 0:01:04]} 21. Rff1 {[%clk 0:00:39]}  Ng3+ {[%clk 0:01:04]} 0-1


[Site "https://www.chess.com"]

[Event "Titled Tuesday Blitz March 01 Late 2022"]
[White "Chyngyz, Sultai"]
[Black "Suarez Uriel, Adrian"]
[WhiteFideId "13803158"]
[BlackFideId "22230874"]
[WhiteElo "1339"]
[BlackElo "2316"]
[Result "0-1"]
[Round "02"]
[TimeControl "180+1"]
[Date "2022.03.02"]
[WhiteClock "0:01:12"]
[BlackClock "0:00:54"]

1. e4 {[%clk 0:03:00]}  c5 {[%clk 0:02:59]} 2. Nf3 {[%clk 0:03:00]}  Nc6 {[%clk 0:03:00]} 3. d4 {[%clk 0:03:00]}  cxd4 {[%clk 0:03:01]} 4. Nxd4 {[%clk 0:03:00]}  g6 {[%clk 0:03:01]} 5. Nxc6 {[%clk 0:03:00]}  bxc6 {[%clk 0:03:00]} 6. Qd4 {[%clk 0:03:01]}  Nf6 {[%clk 0:03:01]} 7. e5 {[%clk 0:03:01]}  Nd5 {[%clk 0:03:02]} 8. e6 {[%clk 0:03:01]}  Nf6 {[%clk 0:03:02]} 9. exd7+ {[%clk 0:03:00]}  Qxd7 {[%clk 0:03:01]} 10. Qxd7+ {[%clk 0:03:00]}  Bxd7 {[%clk 0:03:02]} 11. Bc4 {[%clk 0:03:00]}  Bg7 {[%clk 0:03:01]} 12. O-O {[%clk 0:02:59]}  O-O {[%clk 0:03:01]} 13. Re1 {[%clk 0:02:58]}  e5 {[%clk 0:02:58]} 14. b3 {[%clk 0:02:56]}  Bf5 {[%clk 0:02:55]} 15. Na3 {[%clk 0:02:52]}  e4 {[%clk 0:02:53]} 16. Bb2 {[%clk 0:02:52]}  Rad8 {[%clk 0:02:52]} 17. Rad1 {[%clk 0:02:49]}  Nd5 {[%clk 0:02:52]} 18. Bxg7 {[%clk 0:02:47]}  Kxg7 {[%clk 0:02:53]} 19. Bxd5 {[%clk 0:02:42]}  cxd5 {[%clk 0:02:46]} 20. Nb5 {[%clk 0:02:42]}  Be6 {[%clk 0:02:46]} 21. Nd4 {[%clk 0:02:41]}  Rfe8 {[%clk 0:02:40]} 22. Rd2 {[%clk 0:02:24]}  f5 {[%clk 0:02:38]} 23. Red1 {[%clk 0:02:19]}  Bf7 {[%clk 0:02:38]} 24. Nc6 {[%clk 0:02:17]}  Rd7 {[%clk 0:02:38]} 25. c4 {[%clk 0:02:16]}  Rc8 {[%clk 0:02:08]} 26. Ne5 {[%clk 0:02:09]}  Rd6 {[%clk 0:01:52]} 27. Nxf7 {[%clk 0:02:07]}  Kxf7 {[%clk 0:01:53]} 28. Rxd5 {[%clk 0:02:06]}  Ra6 {[%clk 0:01:49]} 29. R1d2 {[%clk 0:02:04]}  h5 {[%clk 0:01:43]} 30. Rd7+ {[%clk 0:02:02]}  Ke6 {[%clk 0:01:41]} 31. Kf1 {[%clk 0:01:59]}  Rxa2 {[%clk 0:01:37]} 32. Rxa2 {[%clk 0:01:52]}  Kxd7 {[%clk 0:01:37]} 33. Rxa7+ {[%clk 0:01:52]}  Ke6 {[%clk 0:01:37]} 34. Ra6+ {[%clk 0:01:52]}  Ke5 {[%clk 0:01:38]} 35. Ke2 {[%clk 0:01:44]}  Rb8 {[%clk 0:01:33]} 36. Ra5+ {[%clk 0:01:40]}  Kd4 {[%clk 0:01:31]} 37. Rb5 {[%clk 0:01:34]}  Rxb5 {[%clk 0:01:16]} 38. cxb5 {[%clk 0:01:34]}  Kc5 {[%clk 0:01:17]} 39. f3 {[%clk 0:01:33]}  exf3+ {[%clk 0:01:15]} 40. Kxf3 {[%clk 0:01:34]}  g5 {[%clk 0:01:15]} 41. Ke3 {[%clk 0:01:28]}  h4 {[%clk 0:01:03]} 42. b6 {[%clk 0:01:26]}  Kxb6 {[%clk 0:01:03]} 43. Kd4 {[%clk 0:01:27]}  f4 {[%clk 0:00:56]} 44. Ke4 {[%clk 0:01:25]}  Kb5 {[%clk 0:00:56]} 45. Kf5 {[%clk 0:01:25]}  h3 {[%clk 0:00:55]} 46. g3 {[%clk 0:01:09]}  fxg3 {[%clk 0:00:55]} 47. hxg3 {[%clk 0:01:08]}  h2 {[%clk 0:00:55]} 48. Kxg5 {[%clk 0:01:09]}  h1=Q {[%clk 0:00:55]} 49. g4 {[%clk 0:01:09]}  Qd5+ {[%clk 0:00:54]} 50. Kf6 {[%clk 0:01:10]}  Qg8 {[%clk 0:00:55]} 51. g5 {[%clk 0:01:11]}  Kb4 {[%clk 0:00:55]} 52. g6 {[%clk 0:01:11]}  Kxb3 {[%clk 0:00:56]} 53. g7 {[%clk 0:01:12]}  Kc4 {[%clk 0:00:56]} 54. Kg6 {[%clk 0:01:13]}  Kd5 {[%clk 0:00:57]} 55. Kh6 {[%clk 0:01:11]}  Ke5 {[%clk 0:00:55]} 56. Kg6 {[%clk 0:01:12]}  Ke6 {[%clk 0:00:55]} 57. Kh6 {[%clk 0:01:11]}  Kf5 {[%clk 0:00:53]} 58. Kh5 {[%clk 0:01:12]}  Qh7# {[%clk 0:00:54]} 0-1


[Site "https://www.chess.com"]

[Event "Titled Tuesday Blitz March 01 Late 2022"]
[White "Cupid, Kevin"]
[Black "Rorrer, Grayson"]
[WhiteFideId "7700512"]
[BlackFideId "30944996"]
[WhiteElo "2096"]
[BlackElo "2122"]
[Result "1-0"]
[Round "02"]
[TimeControl "180+1"]
[Date "2022.03.02"]
[WhiteClock "0:00:20"]
[BlackClock "0:00:16"]

1. d4 {[%clk 0:02:59]}  Nf6 {[%clk 0:02:55]} 2. c4 {[%clk 0:02:59]}  e6 {[%clk 0:02:56]} 3. Nf3 {[%clk 0:02:58]}  Bb4+ {[%clk 0:02:54]} 4. Nbd2 {[%clk 0:02:59]}  b6 {[%clk 0:02:53]} 5. Qb3 {[%clk 0:02:58]}  a5 {[%clk 0:02:51]} 6. a3 {[%clk 0:02:56]}  Bxd2+ {[%clk 0:02:51]} 7. Bxd2 {[%clk 0:02:57]}  Bb7 {[%clk 0:02:51]} 8. c5 {[%clk 0:02:50]}  O-O {[%clk 0:02:43]} 9. Rc1 {[%clk 0:02:44]}  a4 {[%clk 0:02:38]} 10. Qc2 {[%clk 0:02:35]}  d6 {[%clk 0:02:22]} 11. Bg5 {[%clk 0:02:02]}  Nbd7 {[%clk 0:02:08]} 12. c6 {[%clk 0:01:59]}  Bc8 {[%clk 0:01:50]} 13. cxd7 {[%clk 0:01:58]}  Bxd7 {[%clk 0:01:50]} 14. e3 {[%clk 0:01:58]}  h6 {[%clk 0:01:50]} 15. Bxf6 {[%clk 0:01:54]}  Qxf6 {[%clk 0:01:51]} 16. Bd3 {[%clk 0:01:52]}  c5 {[%clk 0:01:50]} 17. O-O {[%clk 0:01:51]}  Rac8 {[%clk 0:01:49]} 18. Qe2 {[%clk 0:01:50]}  e5 {[%clk 0:01:47]} 19. dxe5 {[%clk 0:01:49]}  dxe5 {[%clk 0:01:48]} 20. h3 {[%clk 0:01:46]}  Bc6 {[%clk 0:01:45]} 21. Bb5 {[%clk 0:01:44]}  e4 {[%clk 0:01:35]} 22. Bxc6 {[%clk 0:01:44]}  Rxc6 {[%clk 0:01:36]} 23. Nh2 {[%clk 0:01:42]}  Qe6 {[%clk 0:01:35]} 24. Qc4 {[%clk 0:01:39]}  Qe5 {[%clk 0:01:35]} 25. Qxa4 {[%clk 0:01:36]}  Rg6 {[%clk 0:01:35]} 26. f4 {[%clk 0:01:32]}  exf3 {[%clk 0:01:33]} 27. Nxf3 {[%clk 0:01:32]}  Qxe3+ {[%clk 0:01:32]} 28. Kh1 {[%clk 0:01:30]}  Qe2 {[%clk 0:01:16]} 29. Nh4 {[%clk 0:01:10]}  Rg5 {[%clk 0:01:10]} 30. Qc2 {[%clk 0:01:08]}  Qe6 {[%clk 0:01:02]} 31. Rce1 {[%clk 0:01:04]}  Qc6 {[%clk 0:00:59]} 32. Qe4 {[%clk 0:01:03]}  Qb5 {[%clk 0:00:59]} 33. Qe2 {[%clk 0:01:02]}  Qb3 {[%clk 0:00:57]} 34. Rf3 {[%clk 0:01:00]}  Qa4 {[%clk 0:00:55]} 35. Nf5 {[%clk 0:00:57]}  Kh7 {[%clk 0:00:29]} 36. Qe4 {[%clk 0:00:54]}  Qd7 {[%clk 0:00:22]} 37. h4 {[%clk 0:00:34]}  Rg6 {[%clk 0:00:21]} 38. Ne7 {[%clk 0:00:30]}  f5 {[%clk 0:00:17]} 39. Nxf5 {[%clk 0:00:23]}  Kh8 {[%clk 0:00:16]} 40. Ne7 {[%clk 0:00:20]}  Rgf6 {[%clk 0:00:16]} 41. Ng6+ {[%clk 0:00:20]}  Kg8 {[%clk 0:00:16]} 42. Nxf8 {[%clk 0:00:20]} 1-0


[Site "https://www.chess.com"]

[Event "Titled Tuesday Blitz March 01 Late 2022"]
[White "Delorme, Alban"]
[Black "Leenhouts, Koen"]
[WhiteFideId "623636"]
[BlackFideId "1008439"]
[WhiteElo "2197"]
[BlackElo "2409"]
[Result "0-1"]
[Round "02"]
[TimeControl "180+1"]
[Date "2022.03.02"]
[WhiteClock "0:01:58"]
[BlackClock "0:01:21"]

1. d4 {[%clk 0:02:58]}  d5 {[%clk 0:02:58]} 2. Nf3 {[%clk 0:02:58]}  Nf6 {[%clk 0:02:57]} 3. g3 {[%clk 0:02:59]}  e6 {[%clk 0:02:54]} 4. Bg2 {[%clk 0:03:00]}  c6 {[%clk 0:02:53]} 5. O-O {[%clk 0:03:01]}  Nbd7 {[%clk 0:02:52]} 6. c4 {[%clk 0:03:02]}  dxc4 {[%clk 0:02:51]} 7. a4 {[%clk 0:03:00]}  a5 {[%clk 0:02:44]} 8. Qc2 {[%clk 0:02:52]}  Be7 {[%clk 0:02:35]} 9. Qxc4 {[%clk 0:02:50]}  O-O {[%clk 0:02:36]} 10. Nc3 {[%clk 0:02:50]}  Nd5 {[%clk 0:02:27]} 11. e4 {[%clk 0:02:49]}  Nxc3 {[%clk 0:02:26]} 12. bxc3 {[%clk 0:02:50]}  Nf6 {[%clk 0:02:08]} 13. Ne5 {[%clk 0:02:38]}  Nd7 {[%clk 0:02:03]} 14. f4 {[%clk 0:02:34]}  Nxe5 {[%clk 0:02:01]} 15. dxe5 {[%clk 0:02:33]}  b6 {[%clk 0:01:54]} 16. Qb3 {[%clk 0:02:21]}  Ba6 {[%clk 0:01:50]} 17. Rd1 {[%clk 0:02:21]}  Bc5+ {[%clk 0:01:46]} 18. Kh1 {[%clk 0:02:21]}  Bc4 {[%clk 0:01:40]} 19. Qc2 {[%clk 0:02:17]}  Qe7 {[%clk 0:01:39]} 20. f5 {[%clk 0:02:16]}  exf5 {[%clk 0:01:36]} 21. exf5 {[%clk 0:02:16]}  Qxe5 {[%clk 0:01:35]} 22. Bf4 {[%clk 0:02:16]}  Qf6 {[%clk 0:01:34]} 23. h4 {[%clk 0:02:10]}  h6 {[%clk 0:01:32]} 24. Qe4 {[%clk 0:02:03]}  Bd5 {[%clk 0:01:30]} 25. Qe2 {[%clk 0:02:01]}  Bxg2+ {[%clk 0:01:23]} 26. Qxg2 {[%clk 0:01:59]}  Qxf5 {[%clk 0:01:22]} 27. Qxc6 {[%clk 0:01:58]}  Qh3# {[%clk 0:01:21]} 0-1


[Site "https://www.chess.com"]